bitfinex/quotes_ETHUSD_20251107
["timestamp","ask_amount","ask_price","bid_price","bid_amount"]
[1762510963418,0.47852467,3288.7,3288.6,16.3131498]
[1762510963619,0.47852467,3288.7,3288.6,15.8273498]
[1762510964025,0.88402867,3288.7,3288.6,15.8273498]
[1762510964446,0.88402867,3288.7,3288.6,17.0573498]
[1762510964644,0.88402867,3288.7,3288.6,17.5450498]
[1762510965772,0.88402867,3288.7,3288.6,18.2873498]
[1762510965935,0.97102867,3288.7,3288.6,18.2873498]
[1762510966134,5.75645584,3288.7,3288.6,18.2873498]
[1762510966349,12.24645584,3288.7,3288.6,18.2873498]
[1762510966784,12.58587664,3288.7,3288.6,18.2873498]
[1762510967353,12.58587664,3288.7,3288.6,19.5173498]
[1762510967555,12.92324027,3288.7,3288.6,19.5173498]
[1762510967989,12.4459156,3288.7,3288.6,19.5173498]
[1762510968451,9.0678368,3288.7,3288.6,19.5173498]
[1762510968654,8.243416,3288.7,3288.6,19.5173498]
[1762510968960,8.243416,3288.7,3288.6,20.7473498]
[1762510969342,11.9609156,3288.7,3288.6,20.7473498]
[1762510969677,8.5828368,3288.7,3288.6,20.7473498]
[1762510970080,8.156416,3288.7,3288.6,20.7473498]
[1762510970244,8.206416,3288.7,3288.6,22.4650498]
[1762510970445,1.737612,3288.7,3288.6,21.9773498]
[1762510970640,5.45283117,3288.7,3288.6,21.9773498]
[1762510970841,2.412116,3288.7,3288.6,21.9773498]
[1762510971584,6.15294893,3288.7,3288.6,21.9773498]
[1762510971766,6.15294893,3288.7,3288.6,23.2073498]
[1762510972406,6.44898024,3288.7,3288.6,23.2073498]
[1762510972739,6.44898024,3288.7,3288.6,23.2083498]
[1762510972909,7.0640554,3288.7,3288.6,23.2083498]
[1762510973253,7.0640554,3288.7,3288.6,19.13101772]
[1762510973545,6.76802409,3288.7,3288.6,19.13101772]
[1762510974238,7.0632554,3288.7,3288.6,19.13101772]
[1762510974400,7.0632554,3288.7,3288.6,6.07376672]
[1762510974813,7.1132554,3288.7,3288.6,4.65366367]
[1762510975030,6.89167038,3288.7,3288.6,4.65366367]
[1762510975344,5.86272813,3288.7,3288.6,4.1993164]
[1762510975525,5.86272813,3288.7,3288.6,3.82331158]
[1762510975749,6.20739921,3288.7,3288.6,5.05331158]
[1762510976140,3.49658905,3288.3,3288.2,0.001]
[1762510976338,5.19936468,3288.3,3288.2,0.001]
[1762510976646,5.67336468,3288.3,3288.2,0.001]
[1762510977045,2.41637963,3288.3,3288.2,1.231]
[1762510977275,6.28493576,3288.3,3288.2,1.231]
[1762510978060,6.27951992,3288.3,3288.2,1.231]
[1762510978370,6.76231992,3288.3,3288.2,1.231]
[1762510978568,6.76231992,3288.3,3288.2,2.461]
[1762510980130,6.76231992,3288.3,3288.2,3.691]
[1762510980530,6.27951992,3288.3,3288.2,3.691]
[1762510980765,0.47738416,3288.3,3288.2,3.691]
[1762510980967,0.52738416,3288.3,3288.2,3.691]
[1762510981170,6.39831592,3288.3,3288.2,0.94751346]
[1762510981461,3.44732909,3287.5,3287.4,3.691]
[1762510981664,13.09074044,3287.5,3286.7,0.001]
[1762510981878,4.75796664,3286.5,3286.4,3.98652654]
[1762510982083,1.715216,3286.5,3286.4,3.98652654]
[1762510982237,1.715216,3286.5,3286.4,4.94112654]
[1762510982238,1.665216,3286.5,3286.4,4.94112654]
[1762510982578,2.58030908,3286.5,3286.4,4.94112654]
[1762510983243,2.58030908,3286.5,3286.4,3.98652654]
[1762510983567,3.02067271,3286.5,3286.4,3.98652654]
[1762510983871,3.38164029,3286.5,3286.4,3.98652654]
[1762510984036,2.58030908,3286.5,3286.4,3.98652654]
[1762510984373,2.58030908,3286.5,3286.4,6.17112654]
[1762510984787,2.58030908,3286.5,3286.4,5.70422654]
[1762510985136,2.58030908,3286.5,3286.4,6.17112654]
[1762510985657,2.58030908,3286.5,3286.4,7.40112654]
[1762510985837,2.17480508,3286.5,3286.4,7.40112654]
[1762510986037,2.58030908,3286.5,3286.4,7.40112654]
[1762510986232,2.58030908,3286.5,3286.4,6.44652654]
[1762510986432,2.17480508,3286.5,3286.4,7.40112654]
[1762510987090,2.17480508,3286.5,3286.4,8.63112654]
[1762510987772,2.58030908,3286.5,3286.4,8.63112654]
[1762510988363,3.05779453,3286.5,3286.4,8.63112654]
[1762510988538,3.05779453,3286.5,3286.4,9.86112654]
[1762510988935,3.10779453,3286.5,3286.4,8.90652654]
[1762510989139,3.41876211,3286.5,3286.4,9.39422654]
[1762510989342,3.01325811,3286.5,3286.4,9.39422654]
[1762510989538,3.01325811,3286.5,3286.4,10.80054919]
[1762510989777,2.65229053,3286.5,3286.4,10.80054919]
[1762510990067,3.41876211,3286.5,3286.4,11.09112654]
[1762510990260,3.05779453,3286.5,3286.4,11.09112654]
[1762510990859,2.65229053,3286.5,3286.4,11.09112654]
[1762510991280,0.80133121,3287.5,3286.4,12.32112654]
[1762510991450,0.05,3287.9,3287.4,0.6854]
[1762510991842,0.05,3287.9,3287.4,1.1523]
[1762510992042,1.32029293,3287.8,3287.4,1.1523]
[1762510992760,0.405504,3287.6,3287.4,2.3823]
[1762510992939,0.49036363,3287.5,3287.4,1.23]
[1762510993141,1.75007563,3287.5,3287.4,1.23]
[1762510993342,0.49036363,3287.5,3287.4,1.23]
[1762510993639,1.715216,3287.5,3287.4,2.1846]
[1762510993952,1.665216,3287.5,3287.4,2.1846]
[1762510994153,1.665216,3287.5,3287.4,3.4146]
[1762510995048,1.259712,3287.5,3287.4,3.4146]
[1762510995577,1.665216,3287.5,3287.4,3.69]
[1762510996350,1.665216,3287.5,3287.4,4.1712]
[1762510996760,2.02618358,3287.5,3287.4,4.1712]
[1762510996965,2.02538358,3287.5,3287.4,5.4012]
[1762510997166,2.46574721,3287.5,3287.4,5.4012]
[1762510997488,2.46574721,3287.5,3287.4,4.92]
[1762510998285,2.46574721,3287.5,3287.4,6.6312]
[1762510998647,6.1268723,3287.5,3287.4,6.15]
[1762510998853,2.61664721,3287.5,3287.4,6.15]
[1762510999054,2.51574721,3287.5,3287.4,6.6312]
[1762510999248,2.51574721,3287.5,3287.4,6.15]
[1762510999655,2.51574721,3287.5,3287.4,7.38]
[1762510999851,5.6584723,3287.5,3287.4,7.38]
[1762511000056,6.1268723,3287.5,3287.4,7.38]
[1762511000276,3.99999238,3287.5,3287.4,7.38]
[1762511000476,6.57341747,3287.5,3287.4,7.38]
[1762511001067,7.04181747,3287.5,3287.4,8.61]
[1762511001268,7.36884878,3287.5,3287.4,8.61]
[1762511002480,7.36884878,3287.5,3287.4,9.84]
[1762511003992,13.0294812,3287.5,3287.4,9.84]
[1762511004294,12.57675384,3287.5,3287.4,11.07]
[1762511004589,11.75568226,3287.5,3287.4,11.07]
[1762511004789,8.71385717,3287.5,3287.4,11.07]
[1762511004972,11.75568226,3287.5,3287.4,11.07]
[1762511005183,7.86044917,3287.5,3287.4,11.07]
[1762511005578,9.12016117,3287.5,3287.4,12.3]
[1762511005789,12.46648626,3287.5,3287.4,12.3]
[1762511006088,12.60234989,3287.5,3287.4,12.3]
[1762511006592,13.06421747,3287.5,3287.4,12.3]
[1762511006795,13.22334323,3287.5,3287.4,12.3]
[1762511007095,12.76147565,3287.5,3287.4,13.53]
[1762511007405,13.33077565,3287.5,3287.4,13.53]
[1762511007571,13.22704323,3287.5,3287.4,13.53]
[1762511007975,13.69174323,3287.5,3287.4,13.53]
[1762511008265,13.22704323,3287.5,3287.4,13.53]
[1762511008471,13.22704323,3287.5,3287.4,14.76]
[1762511009672,13.22704323,3287.5,3287.4,14.761]
[1762511009875,13.22904323,3287.5,3287.4,15.991]
[1762511010078,10.08261814,3287.5,3287.4,15.991]
[1762511010278,13.12444323,3287.5,3287.4,15.991]
[1762511011017,13.61804323,3287.5,3287.4,15.991]
[1762511011226,13.61804323,3287.5,3287.4,17.221]
[1762511011815,13.12444323,3287.5,3287.4,17.221]
[1762511012011,13.69754323,3287.5,3287.4,17.221]
[1762511012314,13.61394323,3287.5,3287.4,17.221]
[1762511012504,13.69754323,3287.5,3287.4,18.451]
[1762511012911,13.61394323,3287.5,3287.4,18.451]
[1762511013119,13.69754323,3287.5,3287.4,18.451]
[1762511013290,14.02457454,3287.5,3287.4,18.451]
[1762511013818,14.02457454,3287.5,3287.4,19.681]
[1762511014179,1.665216,3286.9,3286.7,0.001]
[1762511014418,6.01081811,3286.8,3286.7,0.001]
[1762511014620,6.06081811,3286.8,3286.7,0.001]
[1762511014909,6.97605916,3286.8,3286.7,0.001]
[1762511015120,6.97605916,3286.8,3286.7,1.231]
[1762511015282,6.87595916,3286.8,3286.7,1.231]
[1762511016728,3.83348624,3286.8,3286.7,2.461]
[1762511017030,3.83348624,3286.8,3286.7,2.9422]
[1762511017211,3.50645493,3286.8,3286.7,3.4154]
[1762511017793,3.10095093,3286.8,3286.7,3.4154]
[1762511018024,2.22495305,3286.8,3286.7,4.6454]
[1762511018528,2.63045705,3286.8,3286.7,4.6454]
[1762511018732,0.96524105,3286.8,3286.7,4.6454]
[1762511018904,0.91524105,3286.8,3286.7,4.6454]
[1762511019438,0.91524105,3286.8,3286.7,5.8754]
[1762511019793,0.91444105,3286.8,3286.7,5.8754]
[1762511020893,0.91444105,3286.8,3286.7,7.1054]
[1762511021290,0.91444105,3286.8,3286.7,7.81594]
[1762511022145,0.05,3287.3,3286.7,7.81594]
[1762511022316,1.75599971,3287.2,3286.8,0.4694]
[1762511022716,1.75599971,3287.2,3287.1,0.6509]
[1762511023128,0.91486146,3287.2,3287.1,1.1203]
[1762511023446,6.492,3287.5,3287.1,1.1203]
[1762511023611,0.914669,3287.4,3287.2,0.4694]
[1762511023936,0.914669,3287.4,3287.3,0.18852]
[1762511024139,0.152,3287.2,3287.1,1.4158]
[1762511024325,0.557504,3287.2,3287.1,1.4158]
[1762511024538,0.557504,3287.2,3287.1,2.3255]
[1762511024539,1.28150188,3287.2,3287.1,2.3255]
[1762511024930,1.28150188,3287.2,3287.1,3.5555]
[1762511025129,1.28150188,3287.2,3287.1,3.0976]
[1762511025431,1.28150188,3287.2,3287.1,3.5555]
[1762511025432,0.84113825,3287.2,3287.1,3.5555]
[1762511025850,0.84113825,3287.2,3287.1,2.46]
[1762511026152,0.84113825,3287.2,3287.1,3.69]
[1762511026658,1.28150188,3287.2,3287.1,3.69]
[1762511027016,0.84113825,3287.2,3287.1,4.3276]
[1762511027222,0.84113825,3287.2,3287.1,4.7855]
[1762511027625,0.84113825,3287.2,3287.1,6.0155]
[1762511028467,0.84313825,3287.2,3287.1,6.0155]
[1762511029023,0.84313825,3287.2,3287.1,6.7876]
[1762511029231,0.84313825,3287.2,3287.1,6.6033]
[1762511029568,1.28350188,3287.2,3287.1,5.6033]
[1762511029970,2.54321388,3287.2,3287.1,5.7876]
[1762511030265,2.54321388,3287.2,3287.1,5.15]
[1762511030567,2.87024519,3287.2,3287.1,6.38]
[1762511031063,2.54321388,3287.2,3287.1,6.38]
[1762511031234,2.58210815,3287.2,3287.1,7.4755]
[1762511031432,1.32239615,3287.2,3287.1,7.4755]
[1762511031661,1.7580304,3287.2,3287.1,6.8333]
[1762511031839,1.7580304,3287.2,3287.1,7.61]
[1762511032825,1.7580304,3287.2,3287.1,8.0633]
[1762511033060,2.08506171,3287.2,3287.1,7.61]
[1762511033358,1.7580304,3287.2,3287.1,8.84]
[1762511034229,10.84613734,3287.2,3287.1,8.84]
[1762511034569,13.88824004,3287.2,3287.1,8.84]
[1762511034755,13.88824004,3287.2,3287.1,10.07]
[1762511034756,10.84613734,3287.2,3287.1,10.07]
[1762511034942,10.38243734,3287.2,3287.1,10.07]
[1762511035359,9.50643946,3287.2,3287.1,10.07]
[1762511035727,13.75237641,3287.2,3287.1,10.07]
[1762511035940,13.88824004,3287.2,3287.1,9.58915358]
[1762511036171,13.8481695,3287.2,3287.1,9.58915358]
[1762511036372,13.8481695,3287.2,3287.1,10.81915358]
[1762511036780,13.8481695,3287.2,3287.1,10.35837701]
[1762511036981,13.80162685,3287.2,3287.1,8.58548064]
[1762511037272,13.80162685,3287.2,3287.1,7.67063452]
[1762511037634,13.80162685,3287.2,3287.1,7.61038412]
[1762511037833,13.80162685,3287.2,3286.4,11.36652654]
[1762511037834,3.64955464,3286.5,3286.4,3.69689254]
[1762511038076,3.64955464,3286.5,3285.3,5.89373617]
[1762511038077,0.05,3285.4,3285.3,5.89373617]
[1762511038272,0.49036363,3285.4,3285.3,5.89373617]
[1762511038575,1.213605,3285.4,3285.3,5.89373617]
[1762511038871,0.77324137,3285.4,3285.3,5.89373617]
[1762511039041,1.25827167,3285.4,3285.3,7.12373617]
[1762511039234,1.73337252,3285.4,3285.3,7.12373617]
[1762511040244,1.73337252,3285.4,3285.3,7.57703617]
[1762511040459,1.73337252,3285.4,3285.3,8.80703617]
[1762511040886,1.73337252,3285.4,3285.3,8.35373617]
[1762511041052,1.73337252,3285.4,3285.3,8.80703617]
[1762511041691,1.73337252,3285.4,3285.3,10.03703617]
[1762511042684,1.68337252,3285.4,3285.3,10.03703617]
[1762511043092,0.91546448,3285.4,3285.3,13.23956979]
[1762511043675,1.32738818,3285.4,3285.3,13.23956979]
[1762511043987,0.91546448,3285.4,3285.3,11.72493617]
[1762511044501,1.32738818,3285.4,3285.3,12.95493617]
[1762511044658,0.91546448,3285.4,3285.3,12.95493617]
[1762511045984,0.91546448,3285.4,3285.3,14.18493617]
[1762511046175,1.32738818,3285.4,3285.3,14.18593617]
[1762511047196,0.91546448,3285.4,3285.3,14.18593617]
[1762511047399,0.91546448,3285.4,3285.3,15.41593617]
[1762511047554,0.91546448,3285.4,3285.3,17.46845979]
[1762511048593,0.91546448,3285.4,3285.3,14.95803617]
[1762511048778,0.91546448,3285.4,3285.3,15.73473617]
[1762511048779,1.73289218,3285.4,3285.3,15.73473617]
[1762511048960,1.73289218,3285.4,3285.3,16.18803617]
[1762511049156,1.73289218,3285.4,3285.3,16.64593617]
[1762511049157,0.91546448,3285.4,3285.3,16.64593617]
[1762511050274,0.91546448,3285.4,3285.3,17.87593617]
[1762511050603,1.32738818,3285.4,3285.3,17.87593617]
[1762511050763,1.32738818,3285.4,3285.3,17.41803617]
[1762511050968,1.83829218,3285.4,3285.3,16.96473617]
[1762511051167,1.88829218,3285.4,3285.3,16.96473617]
[1762511051378,9.63800418,3285.4,3285.3,16.96473617]
[1762511051673,10.07836781,3285.4,3285.3,18.19473617]
[1762511051878,9.63800418,3285.4,3285.3,18.19473617]
[1762511052618,10.07836781,3285.4,3285.3,18.19473617]
[1762511052908,10.10170418,3285.4,3285.3,18.19473617]
[1762511053109,10.10170418,3285.4,3285.3,19.42473617]
[1762511053613,9.63800418,3285.4,3285.3,19.42473617]
[1762511053821,9.63800418,3285.4,3285.3,15.991]
[1762511053822,6.95997358,3285.4,3285.3,15.991]
[1762511053969,9.00776838,3285.4,3285.3,8.64881497]
[1762511054168,7.43173852,3285.4,3285.3,1.04000847]
[1762511054383,7.17908118,3285.4,3285.3,1.82696153]
[1762511054629,6.84317987,3285.4,3285.3,1.82696153]
[1762511054765,7.21084396,3285.4,3285.3,1.82696153]
[1762511054969,7.15005553,3285.4,3285.3,2.3e-07]
[1762511055220,7.15005553,3285.4,3285.1,0.005]
[1762511055221,5.85300685,3285.3,3285.1,0.005]
[1762511055399,5.97550685,3285.3,3285.2,1.47035691]
[1762511055701,6.46710685,3285.3,3285.2,1.47035691]
[1762511056272,0.40965519,3285.1,3284.9,0.001]
[1762511056473,5.21731966,3285.0,3284.9,0.001]
[1762511056808,6.09037539,3285.0,3284.9,0.001]
[1762511057022,2.22317963,3285.0,3284.9,0.001]
[1762511057190,5.76321966,3285.0,3284.9,0.001]
[1762511057386,2.22317963,3285.0,3284.9,0.001]
[1762511057903,1.309712,3285.0,3284.9,0.001]
[1762511058402,1.82257563,3285.0,3284.9,0.001]
[1762511058608,1.82257563,3285.0,3284.9,1.231]
[1762511059116,11.84831566,3285.0,3284.9,1.231]
[1762511059276,12.63097539,3285.0,3284.9,1.231]
[1762511059801,12.63097539,3285.0,3284.9,2.461]
[1762511060376,7.99747327,3285.0,3284.9,2.461]
[1762511060806,6.4768767,3285.0,3284.9,2.461]
[1762511061011,4.70963405,3284.7,3284.6,1.231]
[1762511061312,5.53205341,3284.7,3284.6,1.231]
[1762511061486,6.02795341,3284.7,3284.6,1.231]
[1762511062609,7.55721545,3284.7,3284.6,2.461]
[1762511063575,3.9494694,3284.7,3284.6,2.461]
[1762511063798,6.49798745,3284.7,3284.6,2.461]
[1762511063992,6.12083172,3284.7,3284.6,3.691]
[1762511064189,6.09248345,3284.7,3284.6,3.691]
[1762511064710,6.49798745,3284.7,3284.6,3.691]
[1762511065483,3.4478694,3284.7,3284.6,4.921]
[1762511067224,0.91593404,3284.7,3284.6,6.6025]
[1762511067600,0.91593404,3284.7,3284.6,6.151]
[1762511067601,12.58118345,3284.7,3284.6,6.151]
[1762511067806,9.51151367,3284.7,3284.6,6.6025]
[1762511068192,9.51151367,3284.7,3284.6,7.381]
[1762511068394,9.8886694,3284.7,3284.6,7.381]
[1762511068995,12.93308745,3284.7,3284.6,7.381]
[1762511069731,12.93308745,3284.7,3284.6,8.611]
[1762511070226,9.8886694,3284.7,3284.6,8.611]
[1762511071010,9.8886694,3284.7,3284.6,10.2925]
[1762511071207,9.51151367,3284.7,3284.6,10.7754]
[1762511071597,9.8886694,3284.7,3284.6,9.841]
[1762511071802,12.93308745,3284.7,3284.6,9.841]
[1762511072511,12.98668745,3284.7,3284.6,11.071]
[1762511073739,13.47818745,3284.7,3284.6,11.071]
[1762511073931,13.47818745,3284.7,3284.6,12.301]
[1762511074328,12.98668745,3284.7,3284.6,12.301]
[1762511075105,12.98668745,3284.7,3284.6,11.89134481]
[1762511075106,13.47818745,3284.7,3284.6,11.89134481]
[1762511075338,13.47818745,3284.7,3284.6,13.12134481]
[1762511075904,13.47818745,3284.7,3284.6,9.65537749]
[1762511076626,13.47818745,3284.7,3284.6,10.88537749]
[1762511077033,12.95579514,3284.7,3284.6,10.88537749]
[1762511077341,6.41219514,3284.7,3284.6,10.88537749]
[1762511077905,6.47019514,3284.7,3284.6,10.88537749]
[1762511078106,6.47019514,3284.7,3284.6,12.11537749]
[1762511079322,2.66600967,3284.7,3284.6,13.05877749]
[1762511079525,2.66600967,3284.7,3284.6,14.28877749]
[1762511079526,2.22564604,3284.7,3284.6,14.28877749]
[1762511081042,2.22564604,3284.7,3284.6,16.94765524]
[1762511081244,2.22564604,3284.7,3284.6,15.51977749]
[1762511081445,2.17764604,3284.7,3284.6,15.51977749]
[1762511081836,2.5652428,3284.7,3284.6,15.51977749]
[1762511082038,2.17764604,3284.7,3284.6,15.51977749]
[1762511082234,2.17764604,3284.7,3284.6,16.74977749]
[1762511083153,2.17764604,3284.7,3284.6,18.42475524]
[1762511083447,2.54040113,3284.7,3284.6,18.42475524]
[1762511083638,2.54040113,3284.7,3284.6,19.65475524]
[1762511083945,2.17764604,3284.7,3284.6,19.65475524]
[1762511084548,2.54040113,3284.7,3284.6,17.97977749]
[1762511084734,2.54040113,3284.7,3284.6,17.49737749]
[1762511084937,2.54040113,3284.7,3284.6,17.95657749]
[1762511085268,2.98076476,3284.7,3284.6,19.18657749]
[1762511085948,2.98076476,3284.7,3284.6,18.26637749]
[1762511086340,2.98076476,3284.7,3284.6,19.49637749]
[1762511086540,2.98076476,3284.7,3284.6,19.96717749]
[1762511086752,3.38626876,3284.7,3284.6,19.49637749]
[1762511086955,3.38626876,3284.7,3284.6,19.96717749]
[1762511087151,3.38626876,3284.7,3284.6,20.42637749]
[1762511087654,3.38626876,3284.7,3284.6,19.96717749]
[1762511087817,3.38626876,3284.7,3284.6,21.19717749]
[1762511088021,3.38626876,3284.7,3284.6,20.72637749]
[1762511088250,6.42988681,3284.7,3284.6,20.72637749]
[1762511088465,6.42988681,3284.7,3284.6,20.28626801]
[1762511088466,7.06073928,3284.7,3284.6,20.28626801]
[1762511088635,7.14313928,3284.7,3284.6,20.28626801]
[1762511089039,7.14313928,3284.7,3284.6,21.51626801]
[1762511089974,7.06073928,3284.7,3284.6,21.51626801]
[1762511090141,7.14313928,3284.7,3284.6,21.51626801]
[1762511090541,7.14313928,3284.7,3284.6,22.74626801]
[1762511091156,3.54472123,3284.7,3284.6,22.74626801]
[1762511091368,3.59472123,3284.7,3284.6,22.74626801]
[1762511091587,7.19303928,3284.7,3284.6,22.74626801]
[1762511091771,7.19303928,3284.7,3284.6,23.53393775]
[1762511092791,7.52894059,3284.7,3284.6,20.03731002]
[1762511093086,6.83028419,3284.7,3284.6,19.35141302]
[1762511093291,6.74408419,3284.7,3284.6,20.58141302]
[1762511093580,7.1147264,3284.7,3284.6,20.58141302]
[1762511093778,7.1147264,3284.7,3284.6,19.11105632]
[1762511093976,3.60260835,3284.7,3284.6,19.11105632]
[1762511094152,6.6470264,3284.7,3284.6,19.11105632]
[1762511094692,3.55260835,3284.7,3284.6,20.34105632]
[1762511094838,3.55260835,3284.7,3284.6,21.27105632]
[1762511094839,1.49702872,3284.7,3284.6,21.27105632]
[1762511095038,0.96713404,3284.7,3284.6,23.39816195]
[1762511095658,0.96713404,3284.7,3284.6,21.27105632]
[1762511095862,1.33777625,3284.7,3284.6,21.27105632]
[1762511096178,1.33777625,3284.7,3284.6,22.50105632]
[1762511097480,1.33777625,3284.7,3284.6,23.73105632]
[1762511098743,1.33777625,3284.7,3284.6,24.96105632]
[1762511099356,0.91713404,3284.7,3284.6,24.96105632]
[1762511100081,1.25926178,3284.7,3284.6,24.96105632]
[1762511100400,0.91713404,3284.7,3284.6,26.19105632]
[1762511100685,1.25926178,3284.7,3284.6,26.19105632]
[1762511101182,1.74962541,3284.7,3284.6,25.26105632]
[1762511101485,1.74962541,3284.7,3284.6,26.19105632]
[1762511101695,1.74962541,3284.7,3284.6,26.96185632]
[1762511102446,1.27155611,3284.7,3284.6,27.42105632]
[1762511102647,0.91713404,3284.7,3284.6,27.42105632]
[1762511103066,1.27155611,3284.7,3284.6,28.65105632]
[1762511103273,1.71191974,3284.7,3284.6,28.65105632]
[1762511103797,1.27155611,3284.7,3284.6,28.65105632]
[1762511103961,0.91713404,3284.7,3284.6,28.65105632]
[1762511104486,0.91713404,3284.7,3284.6,29.88105632]
[1762511105387,0.002,3284.7,3284.6,32.86916195]
[1762511105880,0.002,3284.7,3284.6,34.09916195]
[1762511106582,0.44236363,3284.7,3284.6,34.09916195]
[1762511106898,0.002,3284.7,3284.6,34.09916195]
[1762511107385,0.002,3284.7,3284.6,35.32916195]
[1762511108192,0.7967857,3284.7,3284.6,32.34105632]
[1762511108390,0.7967857,3284.7,3284.6,31.41105632]
[1762511108557,1.2022897,3284.7,3284.6,31.41105632]
[1762511108891,1.2548897,3284.7,3284.6,32.64105632]
[1762511109556,1.2022897,3284.7,3284.6,32.64105632]
[1762511109768,1.2548897,3284.7,3284.6,32.64105632]
[1762511109967,6.38732106,3284.7,3284.6,16.12083591]
[1762511110173,6.44806884,3284.7,3284.6,17.35083591]
[1762511110467,6.44806884,3284.7,3284.6,16.50706851]
[1762511111065,6.44726884,3284.7,3284.6,16.50706851]
[1762511111753,6.44726884,3284.7,3284.6,17.73706851]
[1762511111754,2.57194948,3284.7,3284.6,17.73706851]
[1762511111954,2.16644548,3284.7,3284.6,17.73706851]
[1762511112155,5.21086353,3284.7,3284.6,17.73706851]
[1762511112359,5.26346353,3284.7,3284.6,17.73706851]
[1762511112560,5.66896753,3284.7,3284.6,17.73706851]
[1762511112970,5.66896753,3284.7,3284.6,18.96706851]
[1762511113173,5.67336753,3284.7,3284.6,18.96706851]
[1762511113660,5.61636753,3284.7,3284.6,18.96706851]
[1762511114281,5.61636753,3284.7,3284.6,20.19706851]
[1762511114493,6.13496753,3284.7,3284.6,20.19706851]
[1762511114814,5.66896753,3284.7,3284.6,20.19706851]
[1762511115016,5.61636753,3284.7,3284.6,20.19706851]
[1762511115218,5.69956753,3284.7,3284.6,20.19706851]
[1762511115418,5.69956753,3284.7,3284.6,19.74113527]
[1762511115619,6.61535618,3284.7,3284.6,20.56145613]
[1762511115829,6.61535618,3284.7,3284.1,1e-08]
[1762511115830,0.05,3284.3,3284.1,1e-08]
[1762511116135,7.02745618,3284.7,3278.8,5.23231143]
[1762511116136,19.97739152,3280.0,3278.8,5.23231143]
[1762511116285,0.05,3282.0,3279.6,3.04915152]
[1762511116286,0.405504,3281.9,3279.6,3.04915152]
[1762511116481,0.405504,3281.9,3279.9,0.4866]
[1762511116728,0.405504,3281.9,3280.0,0.0304878]
[1762511116885,0.05,3281.6,3280.0,0.4785]
[1762511117082,0.05,3281.6,3279.8,0.1568]
[1762511117083,0.05,3281.6,3280.1,0.1373]
[1762511117288,0.05,3281.6,3279.1,0.005]
[1762511117289,3.04825263,3280.6,3279.1,0.005]
[1762511117547,0.05,3279.8,3279.2,0.6353]
[1762511117688,0.466,3281.6,3279.2,0.6353]
[1762511117689,0.05,3280.7,3279.3,0.18703]
[1762511118028,3.04588014,3283.2,3279.3,0.18703]
[1762511118029,0.405504,3280.3,3280.0,0.1373]
[1762511118244,15.0,3284.2,3280.1,5.10686456]
[1762511118245,0.2348,3284.0,3280.1,5.10686456]
[1762511118551,0.005,3281.9,3281.5,0.4866]
[1762511118686,0.005,3281.9,3281.6,0.03047294]
[1762511119044,0.405504,3282.6,3281.8,0.6434]
[1762511119332,0.005,3282.9,3282.5,0.4866]
[1762511119532,0.005,3282.9,3282.8,0.4866]
[1762511120034,0.005,3282.9,3282.8,0.9651]
[1762511120599,0.005,3282.9,3282.8,0.4866]
[1762511121420,0.005,3282.9,3282.8,0.9651]
[1762511121952,0.005,3282.9,3282.8,2.1951]
[1762511122108,0.005,3282.9,3282.8,2.41461]
[1762511122347,0.405504,3283.5,3282.8,2.41461]
[1762511122489,0.05,3283.8,3283.4,0.6337]
[1762511122722,0.405504,3283.7,3283.4,0.6337]
[1762511122886,0.405504,3283.7,3283.5,0.4785]
[1762511123608,0.405504,3283.7,3283.4,0.1471]
[1762511124923,0.05,3283.8,3283.6,0.4866]
[1762511125122,0.05,3283.8,3283.4,0.6256]
[1762511125123,0.005,3283.9,3283.7,0.4866]
[1762511125325,0.405504,3284.6,3283.8,0.51705252]
[1762511125525,0.0012,3284.7,3284.5,0.6742]
[1762511125710,0.0012,3284.7,3284.6,0.9955451]
[1762511126505,0.0012,3284.7,3284.6,0.9651]
[1762511126703,0.0012,3284.7,3284.6,0.9955451]
[1762511127306,0.0012,3284.7,3284.6,0.9651]
[1762511127497,0.0012,3284.7,3284.6,2.1951]
[1762511127699,0.0012,3284.7,3284.6,2.4638151]
[1762511128745,0.005,3284.9,3284.6,2.4638151]
[1762511128940,0.005,3284.9,3284.8,0.4866]
[1762511129095,0.002,3285.8,3284.8,0.4866]
[1762511129096,0.002,3285.8,3284.8,0.99554325]
[1762511129295,0.002,3285.8,3285.3,0.6434]
[1762511129540,0.12402692,3285.8,3285.3,1.1219]
[1762511129694,0.002,3285.8,3285.3,1.1219]
[1762511130358,0.002,3285.8,3285.3,2.3519]
[1762511130570,0.002,3285.8,3285.3,2.58709]
[1762511131122,0.002,3285.8,3285.3,1.8734]
[1762511131640,0.002,3285.8,3285.3,3.1034]
[1762511132337,0.002,3285.8,3285.3,2.46]
[1762511132338,0.05,3285.6,3285.3,2.46]
[1762511132540,0.9657,3285.4,3285.3,2.46]
[1762511132777,0.4997,3285.4,3285.3,2.46]
[1762511132926,0.002,3285.4,3285.3,2.46]
[1762511133134,0.002,3285.4,3285.3,3.69]
[1762511133372,0.002,3285.4,3285.3,5.03978]
[1762511133866,0.0012,3285.4,3285.3,5.03978]
[1762511134036,0.0012,3285.4,3285.3,4.1766]
[1762511134240,0.0012,3285.4,3285.3,4.6551]
[1762511134760,0.0012,3285.4,3285.3,5.8851]
[1762511135424,0.0012,3285.4,3285.3,4.92]
[1762511135624,0.0012,3285.4,3285.3,5.4066]
[1762511136076,0.0012,3285.4,3285.3,6.6366]
[1762511136572,0.0012,3285.4,3285.3,7.79444]
[1762511137164,0.0012,3285.4,3285.3,6.15]
[1762511137336,0.0012,3285.4,3285.3,7.38]
[1762511137667,0.0012,3285.4,3285.3,8.3451]
[1762511138222,0.0012,3285.4,3285.3,7.8666]
[1762511138466,0.0012,3285.4,3285.3,7.38]
[1762511138639,0.0012,3285.4,3285.3,7.8666]
[1762511138824,0.0012,3285.4,3285.3,9.0966]
[1762511139032,0.0012,3285.4,3285.3,8.61]
[1762511139431,0.10922506,3285.8,3285.3,9.48668]
[1762511139661,0.005,3285.9,3285.7,0.4963]
[1762511139857,0.005,3285.9,3285.3,9.48668]
[1762511140066,0.1857,3285.9,3285.3,9.48668]
[1762511140268,0.005,3285.9,3285.3,10.71668]